Cogmind - Beta 11.1 @@@ ROGUE MODE // 2022.05.02 @ 02:08:28 Player: Olga Result: Destroyed by G-47 Trooper with Particle Gun Performance ------------- Evolutions (2) 1000 Regions Visited (3) 600 Robots Destroyed (6) 30 Value Destroyed (123) 123 Prototype IDs (0) 0 Alien Tech Used (0) 0 Bonus (470) 470 TOTAL SCORE: 2223 Bonus ------- Pacifist 470 Cogmind --------- Core Integrity 0/550 Matter 201/300 Energy 98/100 System Corruption 0% Temperature Cool (18) Movement Core (50) Location -8/Materials Parts ------- > --- POWER (1) -------- (None) > --- PROPULSION (2) --- (None) > --- UTILITY (6) ------ Signal Interpreter > --- WEAPON (2) ------- (None) > --- INVENTORY (5) ---- Mini Grenade Launcher Mini Grenade Launcher Mini Grenade Launcher Mini Grenade Launcher Mini Grenade Launcher Peak State ------------ > --- POWER ------------ (None) > --- PROPULSION ------- (None) > --- UTILITY ---------- Signal Interpreter > --- WEAPON ----------- Mini Grenade Launcher > --- INVENTORY -------- Mini Grenade Launcher Mini Grenade Launcher Mini Grenade Launcher Mini Grenade Launcher Mini Grenade Launcher [Rating: 4] Favorites ----------- Power None Propulsion None Utility Signal Interpreter Processor Signal Interpreter Weapon Light Assault Rifle Ballistic Gun Light Assault Rifle Launcher Mini Grenade Launcher Build | -11 -10 -9 -8 ------- Run | Scr Mat Mat Mat Slots Evolved 4 | . . 2 2 Power . | . . . . Propulsion . | . . . . Utility 4 | . . 2 2 Weapon . | . . . . Parts Attached 3 | 1 1 . 1 Power . | . . . . Engine . | . . . . Core . | . . . . Reactor . | . . . . Propulsion . | . . . . Treads . | . . . . Leg . | . . . . Wheel . | . . . . Hover . | . . . . Flight . | . . . . Utility 1 | . 1 . . Device . | . . . . Storage . | . . . . Processor 1 | . 1 . . Hackware . | . . . . Protection . | . . . . Artifact . | . . . . Weapon 2 | 1 . . 1 Energy Gun . | . . . . Energy Cannon . | . . . . Ballistic Gun 1 | 1 . . . Ballistic Cannon . | . . . . Launcher 1 | . . . 1 Special Weapon . | . . . . Impact Weapon . | . . . . Slashing Weapon . | . . . . Piercing Weapon . | . . . . Special Melee Weapon . | . . . . Unidentified Prototypes . | . . . . Parts Lost 2 | . 1 . 1 Power . | . . . . Propulsion . | . . . . Utility . | . . . . Weapon 2 | . 1 . 1 Highest Loss Streak 1 | . 1 . 1 To Critical Strikes . | . . . . Average Slot Usage (%) 14 | . 17 11 12 Processor 7 | . 4 11 9 Ballistic Gun 5 | . 12 . . Launcher 1 | . . . 3 Naked Turns . | . . . . Heaviest Build 1 | 1 1 . 1 Greatest Support 3 | 3 3 3 3 Greatest Overweight (x) . | . . . . Average Overweight (x) . | . . . . Largest Inventory Capacity 5 | 5 5 5 5 Average Capacity 5 | 5 5 5 5 Most Carried 5 | 4 . . 5 Average Carried . | 2 . . 2 Final Capacity 5 | 5 5 5 5 Final Carried 5 | . . . 5 Class Distribution -------------------- 100% | Mutant Dominant Class ---------------- Mutant | -10/Materials Mutant | -9/Materials Mutant | -8/Materials Resources | -11 -10 -9 -8 ----------- Run | Scr Mat Mat Mat Matter Collected 164 | 164 . . . Remotely . | . . . . Salvage Created 130 | . . . 130 Parts 10 | . . . 10 Haulers Intercepted . | . . . . Recyclers Shooed . | . . . . Parts Field Recycled . | . . . . Retrieved Matter . | . . . . Parts Self-Destructed . | . . . . Prevented . | . . . . Kills | -11 -10 -9 -8 ------- Run | Scr Mat Mat Mat Combat Hostiles Destroyed 5 | . . . 5 AOE 5 | . . . 5 Classes Destroyed 3 | . . . 3 Recycler 1 | . . . 1 Swarmer 4 | . . . 4 Grunt 1 | . . . 1 Best Kill Streak 6 | . . . 6 Combat Bots Only 5 | . . . 5 Max Kills in Single Turn 2 | . . . 2 Gunslinging . | . . . . Exploded 2 | . . . 2 Melee . | . . . . Uniques/NPCs Destroyed . | . . . . Combat | -11 -10 -9 -8 -------- Run | Scr Mat Mat Mat Damage Taken 1156 | . 283 255 618 Core 1016 | . 202 255 559 Absorbed by Shields . | . . . . Core Remaining (%) 51 | 100 19 36 . Volleys Fired 6 | . . . 6 Largest 1 | . . . 1 Hottest 30 | . . . 30 Shots Fired 6 | . . . 6 Gun . | . . . . Cannon . | . . . . Launcher 6 | . . . 6 Special . | . . . . Kinetic . | . . . . Thermal . | . . . . Explosive 6 | . . . 6 Electromagnetic . | . . . . Robot Hit Streak . | . . . . Robot Miss Streak 1 | . . . 1 Penetration Max . | . . . . Secondary Targets . | . . . . Shots Hit Robots . | . . . . Core Hits 9 | . 1 . 8 Critical Kills . | . . . . Critical Parts Destroyed . | . . . . Critical Strikes . | . . . . Melee Attacks . | . . . . Impact . | . . . . Slashing . | . . . . Piercing . | . . . . Sneak Attacks . | . . . . Combat Hostiles . | . . . . Follow-up Attacks . | . . . . Damage Inflicted 611 | . 11 . 600 Guns . | . . . . Cannons . | . . . . Explosions 600 | . . . 600 Melee . | . . . . Ramming 11 | . 11 . . Kinetic . | . . . . Thermal . | . . . . Explosive 600 | . . . 600 Electromagnetic . | . . . . Impact . | . . . . Slashing . | . . . . Piercing . | . . . . Highest Corruption . | . . . . Average Corruption . | . . . . Corruption Purged . | . . . . Corruption Blocked . | . . . . Overload Shots . | . . . . Overflow Damage 26 | . . . 26 Projectiles . | . . . . Explosions 26 | . . . 26 Melee . | . . . . Knockbacks . | . . . . Impact . | . . . . Kinetic . | . . . . Secondary . | . . . . Self-Inflicted Damage 262 | . 4 . 258 Shots 5 | . . . 5 Rammed 4 | . 3 1 . Targets Rammed 4 | . 3 1 . Kicked . | . . . . Crushed . | . . . . Highest Temperature 14 | . . 14 8 Average Temperature 11 | . . 14 8 Received Heat Transfer 402 | . 156 102 144 Siege Activations . | . . . . Robots Corrupted . | . . . . Combat Hostiles . | . . . . Parts Fried . | . . . . Impact Corruptions . | . . . . Robots Melted . | . . . . Combat Hostiles . | . . . . Parts Melted . | . . . . Heat Transferred . | . . . . Parts Sabotaged . | . . . . Parts Stolen . | . . . . Parts Stripped . | . . . . Power Chain Reactions . | . . . . Missiles Intercepted . | . . . . Alert | -11 -10 -9 -8 ------- Run | Scr Mat Mat Mat Peak Influence 344 | . 66 170 344 Initial 71 | . . 27 71 Average 80 | . 35 76 136 Maximum Alert Level 1 | . . . 1 Low Security (%) 95 | 100 100 100 85 Level 1 4 | . . . 14 Level 2 . | . . . . Level 3 . | . . . . Level 4 . | . . . . Level 5 . | . . . . High Security . | . . . . Max Security . | . . . . Squads Dispatched 6 | . 4 1 1 Investigation 4 | . 2 1 1 Extermination . | . . . . Reinforcement 2 | . 2 . . Assault . | . . . . Garrison . | . . . . Intercept . | . . . . Searches Triggered . | . . . . Construction Impeded . | . . . . Haulers Reinforced . | . . . . Active Scanning Responses . | . . . . Cargo Convoy Interrupts . | . . . . Stealth | -11 -10 -9 -8 --------- Run | Scr Mat Mat Mat Distress Signals 2 | . . . 2 Communications Jammed . | . . . . Distress Signals . | . . . . Times Spotted 36 | . 13 12 11 Peak Tracking Total 9 | . 9 9 9 Tactical Retreats 3 | . 1 2 . Traps | -11 -10 -9 -8 ------- Run | Scr Mat Mat Mat Traps Triggered . | . . . . Indirectly . | . . . . Trap Hack Attempts . | . . . . Triggered . | . . . . Disarmed . | . . . . Reprogrammed . | . . . . Reused . | . . . . Traps Extracted . | . . . . Installed . | . . . . Triggered . | . . . . Machines | -11 -10 -9 -8 ---------- Run | Scr Mat Mat Mat Machines Disabled 3 | . . . 3 Max in Single Turn 1 | . . . 1 Machines Sabotaged . | . . . . Garrisons Compromised . | . . . . Overloaded Fab Kills . | . . . . Hacking | -11 -10 -9 -8 --------- Run | Scr Mat Mat Mat Machines Accessed 9 | . 3 2 4 Terminals 9 | . 3 2 4 Fabricators . | . . . . Repair Stations . | . . . . Recycling Units . | . . . . Scanalyzers . | . . . . Garrison Access . | . . . . Total Hacks 30 | . 10 10 10 Successful 11 | . 2 4 5 Failed 19 | . 8 6 5 Catastrophic 4 | . 2 . 2 Database Lockouts . | . . . . Manual 30 | . 10 10 10 Terminals 30 | . 10 10 10 Fabricators . | . . . . Repair Stations . | . . . . Recycling Units . | . . . . Scanalyzers . | . . . . Garrison Access . | . . . . Terminal Hacks 5 | . 1 2 2 Level Access Points 3 | . 1 1 1 Terminal Index 2 | . . 1 1 Fabricator Hacks . | . . . . Repair Station Hacks . | . . . . Recycling Unit Hacks . | . . . . Scanalyzer . | . . . . Garrison Access Hacks . | . . . . Unauthorized Hacks 6 | . 1 2 3 Terminals 6 | . 1 2 3 Assimilate 1 | . 1 . . Botnet 5 | . . 2 3 Fabricators . | . . . . Repair Stations . | . . . . Recycling Units . | . . . . Scanalyzers . | . . . . Garrison Access . | . . . . Data Cores Recovered . | . . . . Used . | . . . . Hacking Detections 7 | . 2 2 3 Full Trace Events 5 | . 2 2 1 Feedback Events . | . . . . Feedback Blocked . | . . . . Robot Schematics Acquired . | . . . . Robots Built . | . . . . Authchips . | . . . . Time . | . . . . Total Robot Build Rating . | . . . . Part Schematics Acquired . | . . . . Parts Built . | . . . . Authchips . | . . . . Time . | . . . . Total Part Build Rating . | . . . . Parts Repaired . | . . . . Time . | . . . . Parts Recycled . | . . . . Recycled Matter . | . . . . Retrieved Matter . | . . . . Retrieved Components . | . . . . Parts Scanalyzed . | . . . . Part Schematics Acquired . | . . . . Parts Damaged . | . . . . Bothacking | -11 -10 -9 -8 ------------ Run | Scr Mat Mat Mat Used RIF Installer . | . . . . Robots Hacked . | . . . . Non-combat . | . . . . Combat . | . . . . Robot Hacks Applied . | . . . . Relay Couplers Released . | . . . . Fabnet Peak Effective % . | . . . . Robots Rewired . | . . . . Allies Hacked . | . . . . Hacks Repelled . | . . . . Allies | -11 -10 -9 -8 -------- Run | Scr Mat Mat Mat Total Allies . | . . . . Largest Group . | . . . . Highest-Rated Group . | . . . . Highest-Rated Ally . | . . . . Total Orders . | . . . . Ally Attacks . | . . . . Total Damage . | . . . . Kills . | . . . . Allies Corrupted . | . . . . Allies Melted . | . . . . Intel | -11 -10 -9 -8 ------- Run | Scr Mat Mat Mat Robot Analysis Total . | . . . . Derelict Logs Recovered . | . . . . Drone Launches . | . . . . Drone Recoveries . | . . . . Exploration | -11 -10 -9 -8 ------------- Run | Scr Mat Mat Mat Turns Passed 225 | 3 87 58 77 Spaces Moved 397 | 1 165 114 117 Core 397 | 1 165 114 117 Treads . | . . . . Legs . | . . . . Wheels . | . . . . Hover . | . . . . Flight . | . . . . Fastest Speed 50 | 50 50 50 50 Average Speed 50 | 50 50 50 50 Slowest Speed 50 | 50 50 50 50 Overloaded Moves . | . . . . Propulsion Burnouts . | . . . . Robots Hopped . | . . . . Cave-ins Triggered . | . . . . Exploration Rate (%) 23 | 2 47 23 21 Regions Visited 3 Branch Regions . Pre-discovered Areas . | . . . . Known Exits Taken 2 | . 1 1 . Unknown Exits Taken 1 | 1 . . . Scrap Searched . | . . . . Spaces Dug . | . . . . Terrain Destroyed 73 | . . . 73 Melee . | . . . . Projectile . | . . . . AOE 73 | . . . 73 Terrain Rammed . | . . . . Walls Destroyed . | . . . . Machines Disabled . | . . . . Actions | -11 -10 -9 -8 --------- Run | Scr Mat Mat Mat Total 416 | 5 168 114 129 Wait . | . . . . Move 394 | . 164 113 117 Hop . | . . . . Pick Up 5 | . . . 5 Fast Attach 2 | . 1 . 1 Attach 1 | 1 . . . Detach . | . . . . Swap . | . . . . Drop 4 | 4 . . . Fire 6 | . . . 6 Melee . | . . . . Ram 4 | . 3 1 . Kick . | . . . . Crush . | . . . . Escape Stasis . | . . . . Rewire . | . . . . Trap . | . . . . Miscellaneous . | . . . . Route ------- -11/Scrapyard -10/Materials (discovered 4 exits: *Mat x3 / [*Min]) -9/Materials (discovered 3 exits: *Mat x3) -8/Materials (discovered 3 exits: Fac x3) History --------- Turn | Location | Event 1 | -11/Scrapyard | Released all parts (6) 4 | -11/Scrapyard | Discovered new exit (range 0) 4 | -11/Scrapyard | Entered Materials 39 | -10/Materials | Discovered new exit (range 8) 85 | -10/Materials | Core integrity fell below 50% 85 | -10/Materials | Identified exit to Materials 89 | -10/Materials | Core integrity fell below 20% 91 | -10/Materials | Entered another Materials area 91 | -9/Materials | Evolved 2 slots: Utility x2 128 | -9/Materials | Core integrity fell below 50% 131 | -9/Materials | Identified exit to Materials 149 | -9/Materials | Entered another Materials area 149 | -8/Materials | Evolved 2 slots: Utility x2 202 | -8/Materials | Identified exit to Factory 217 | -8/Materials | Core integrity fell below 50% 223 | -8/Materials | Core integrity fell below 20% 226 | -8/Materials | Destroyed by G-47 Trooper with Particle Gun Last Messages --------------- 00214_ U-05 Engineer lays Concrete. 00215_ U-05 Engineer builds a Wall. 00216_ Nuclear Reactor explodes. 00216_ S-10 Pest destroyed. 00216_ Destroyed Flight Unit. 00216_ S-10 Pest destroyed. 00216_ U-05 Engineer builds a Wall. 00218_ K-01 Serf collects debris. 00219_ The unstable cave ceiling collapses. 00219_ Terminal disabled. 00219_ U-05 Engineer builds a Wall. 00221_ U-05 Engineer lays Concrete. 00222_ Nuclear Reactor explodes. 00222_ R-06 Scavenger destroyed. 00222_ G-47 Trooper destroyed. 00222_ U-05 Engineer lays Concrete. 00223_ U-05 Engineer builds a Wall. 00224_ Mni. Grenade Launcher destroyed. 00224_ K-01 Serf collects debris. 00226_ The unstable cave ceiling collapses. Map ----- +----------------------------------------------------+ | | | | | | | | | ?????????????????????????????????????????????????? | | ?????????????????????????????????????????????????? | | ?????????????????????????????????????????????????? | | ?????????????????????????????????????????????????? | | ?????????????????????????????????????????????????? | | ?????????????????????????????????????????????????? | | ?????????????????????????????????????????????????? | | ?????????????????????????????????????????????????? | | ?????????????????????????????????????????????????? | | ?????????????????????????????????????????????????? | | ?????????????????????????????????????????????????? | | ?????????????????????????????????????????????????? | | ?????????????????????????######??????????????????? | | ????????????????????????# #??????????????????? | | ????????????????????????# #??????????????????? | | ????????????H???????????# #??????????????????? | | ????????????????????????# #??????????????????? | | ????????????????????????# #??????????????????? | | ????????????????????????/ #??????????????????? | | ????????????????????????# #??????????????????? | | ????????????????????????# #??????????????????? | | ????????????????????????#@ +??????????????????? | | ?????????????????######## #??????????????????? | | ?????????????????# # #??????????????????? | | ?????????????????# ##? #??????????????? | | ?????????????????## #? #??????????????? | | ????????????????## ##/###????????????? | | ???????????????## ??????????? | | ???????????????# [ = """???????????? | | ???????????????# *=% """ #?????????? | | ???????????????# g!% """ #?????????? | | ???????????????# !! #?????????? | | ??????????? ???##[ T g ! #?????????? | | ???????????? ???# " g #?????????? | | ????????????? ??# #g [* k ??????????? | | ?????????????? ###+## # #+###########?????? | | ????????????? #?????? | | ????????????? #?????? | | ????????????? #?????? | | ???????????? #### ##### # ## ###### #?????? | | ????????????+##???# # # T #?????????? | | ??????????????????# # " # #?????????? | | ??????????????????# + T +?????????? | | ??????????????????# # " # """ #?????????? | | ??????????????????# # !!! """ #?????????? | | ??????????????????# # #!!! """ #?????????? | +----------------------------------------------------+ Best States ------------- Heat Dissipation 31 Energy Generation 5 Energy Capacity 100 Matter Stores 267 Matter Capacity 300 Sight Range 16 Terrain Scan Density 10 Evasion (%) 50 Item Schematics ----------------- None Robot Schematics ------------------ None Fabricated ------------ Nothing Alien Tech Used ----------------- None Achievements -------------- None Challenges ------------ None Game ------ Seed FlakAlloyProtection Manual? 0 Play Time 00:07:23 Cumulative 150.9 hours Start 2022.05.02 @ 02:03:10 End 2022.05.02 @ 02:08:28 Sessions 1 Manual Loads 0 Difficulty Rogue Special Mode None Game No. 235 Rogue 234 Adventurer 0 Explorer 1 Win Type - Total 7 Types 7/0/0/0/0/0/0/0/0 Lore% 60 Gallery% 62 Achievement% 51 Wizard Run 0 Options --------- ASCII 1 Keyboard 0 Movement Vi Keybinds 0 Fullscreen 1 Font 18/SmallcapsGlow Map View 76x50 Tactical HUD 1 Map Filters NONE Filters NONE Steam 1 RUN: 5b89fe47-aef8-45b2-94ac-84ce78199e43